[Event "*** Titled Tuesday Blitz"]
[Site "Chess.com"]
[Date "2021.03.30"]
[Round "6"]
[White "Pelopidass"]
[Black "Bacyanide"]
[Result "1-0"]
[WhiteElo "2575"]
[BlackElo "2424"]
[TimeControl "180+1"]
[EndTime "11:05:52 PDT"]
[Termination "Pelopidass won by resignation"]

1. d4 {[%clk 0:03:00.9]} 1... Nf6 {[%clk 0:02:59.1]} 2. Nf3 {[%clk 0:03:01.2]}
2... e6 {[%clk 0:02:59.1]} 3. c4 {[%clk 0:03:00.4]} 3... d5 {[%clk 0:02:59.2]}
4. e3 {[%clk 0:02:59.9]} 4... Be7 {[%clk 0:02:57.9]} 5. Nbd2 {[%clk 0:02:57.9]}
5... O-O {[%clk 0:02:57.5]} 6. Bd3 {[%clk 0:02:58]} 6... a6 {[%clk 0:02:54.1]}
7. b3 {[%clk 0:02:57.4]} 7... dxc4 {[%clk 0:02:48.8]} 8. bxc4 {[%clk 0:02:58.3]}
8... c5 {[%clk 0:02:47]} 9. Bb2 {[%clk 0:02:57.5]} 9... Nc6 {[%clk 0:02:46.2]}
10. O-O {[%clk 0:02:55.6]} 10... cxd4 {[%clk 0:02:39.8]} 11. exd4 {[%clk
0:02:56.5]} 11... b5 {[%clk 0:02:40.1]} 12. cxb5 {[%clk 0:02:42.7]} 12... Nb4
{[%clk 0:02:40]} 13. Be2 {[%clk 0:02:31.2]} 13... axb5 {[%clk 0:02:39.8]} 14.
Bxb5 {[%clk 0:02:30.7]} 14... Rxa2 {[%clk 0:02:31.8]} 15. Rxa2 {[%clk 0:02:17]}
15... Nxa2 {[%clk 0:02:32.7]} 16. Ne5 {[%clk 0:02:14.8]} 16... Nb4 {[%clk
0:02:27.4]} 17. Ndf3 {[%clk 0:01:59.9]} 17... Bb7 {[%clk 0:02:26.5]} 18. Ba3
{[%clk 0:01:53.4]} 18... Qb6 {[%clk 0:02:12.4]} 19. Qe2 {[%clk 0:01:38.2]} 19...
Nfd5 {[%clk 0:02:01.8]} 20. Nd7 {[%clk 0:01:30.5]} 20... Qa5 {[%clk 0:01:49.1]}
21. Bxb4 {[%clk 0:01:11.1]} 21... Qxb4 {[%clk 0:01:44.9]} 22. Nxf8 {[%clk
0:01:00.5]} 22... Bxf8 {[%clk 0:01:36.7]} 23. Bd3 {[%clk 0:00:56.2]} 23... Nf4
{[%clk 0:01:34.5]} 24. Qe3 {[%clk 0:00:52.6]} 24... Bd6 {[%clk 0:01:27.3]} 25.
Rb1 {[%clk 0:00:43.4]} 25... Qa3 {[%clk 0:01:14.3]} 26. Bxh7+ {[%clk 0:00:29.4]}
26... Kxh7 {[%clk 0:01:09.4]} 27. Qxa3 {[%clk 0:00:30.3]} 27... Bxa3 {[%clk
0:01:07.1]} 28. Rxb7 {[%clk 0:00:30.8]} 28... f6 {[%clk 0:01:03.8]} 29. g3
{[%clk 0:00:28.7]} 29... Nd5 {[%clk 0:00:56.8]} 30. h4 {[%clk 0:00:29.1]} 30...
Kg6 {[%clk 0:00:53.5]} 31. Kf1 {[%clk 0:00:29]} 31... Bf8 {[%clk 0:00:51.2]} 32.
Ke2 {[%clk 0:00:29.2]} 32... Kf5 {[%clk 0:00:51.4]} 33. Rf7 {[%clk 0:00:25.9]}
33... Bb4 {[%clk 0:00:31.8]} 34. Rxg7 {[%clk 0:00:25.7]} 34... Nc3+ {[%clk
0:00:32.7]} 35. Kd3 {[%clk 0:00:25.8]} 35... Ne4 {[%clk 0:00:33.2]} 36. Ke3
{[%clk 0:00:22.6]} 36... e5 {[%clk 0:00:29.7]} 37. g4+ {[%clk 0:00:20.8]} 1-0

[Event "*** Titled Tuesday Blitz"]
[Site "Chess.com"]
[Date "2021.03.30"]
[Round "6"]
[White "KNVB"]
[Black "MergenKakabaev"]
[Result "0-1"]
[WhiteElo "2640"]
[BlackElo "2383"]
[TimeControl "180+1"]
[EndTime "11:05:53 PDT"]
[Termination "MergenKakabaev won on time"]

1. e4 {[%clk 0:02:55.2]} 1... e5 {[%clk 0:02:57.4]} 2. Nf3 {[%clk 0:02:54.1]}
2... Nc6 {[%clk 0:02:56.7]} 3. Bb5 {[%clk 0:02:50.6]} 3... a6 {[%clk 0:02:56.4]}
4. Ba4 {[%clk 0:02:49.1]} 4... Nf6 {[%clk 0:02:55.7]} 5. O-O {[%clk 0:02:48.3]}
5... Be7 {[%clk 0:02:55]} 6. Re1 {[%clk 0:02:48]} 6... b5 {[%clk 0:02:55]} 7.
Bb3 {[%clk 0:02:47.2]} 7... d6 {[%clk 0:02:55.6]} 8. c3 {[%clk 0:02:46.2]} 8...
O-O {[%clk 0:02:55.2]} 9. h3 {[%clk 0:02:46.3]} 9... Na5 {[%clk 0:02:54.7]} 10.
Bc2 {[%clk 0:02:46]} 10... c5 {[%clk 0:02:55.1]} 11. d4 {[%clk 0:02:44.1]} 11...
Qc7 {[%clk 0:02:54.5]} 12. d5 {[%clk 0:02:18.9]} 12... Bd7 {[%clk 0:02:53.4]}
13. b3 {[%clk 0:02:14.7]} 13... c4 {[%clk 0:02:50.5]} 14. Be3 {[%clk 0:01:42]}
14... Ne8 {[%clk 0:02:43.6]} 15. b4 {[%clk 0:01:34.1]} 15... Nb7 {[%clk
0:02:41.7]} 16. Nbd2 {[%clk 0:01:35]} 16... g6 {[%clk 0:02:41.2]} 17. a4 {[%clk
0:01:16.3]} 17... Ng7 {[%clk 0:02:37.5]} 18. a5 {[%clk 0:01:06.6]} 18... f6
{[%clk 0:02:36]} 19. Nh2 {[%clk 0:00:50.2]} 19... Nd8 {[%clk 0:02:34.2]} 20. g4
{[%clk 0:00:29.5]} 20... Nf7 {[%clk 0:02:32.8]} 21. Nhf1 {[%clk 0:00:19.8]}
21... f5 {[%clk 0:01:55.9]} 22. exf5 {[%clk 0:00:16.8]} 22... gxf5 {[%clk
0:01:56.8]} 23. gxf5 {[%clk 0:00:15.4]} 23... Nxf5 {[%clk 0:01:42.7]} 24. Qh5
{[%clk 0:00:14.5]} 24... Qc8 {[%clk 0:01:31.7]} 25. Ng3 {[%clk 0:00:13.7]} 25...
Nd8 {[%clk 0:01:18.5]} 26. Kh2 {[%clk 0:00:12.3]} 26... Kh8 {[%clk 0:01:05.9]}
27. Rg1 {[%clk 0:00:11.4]} 27... Rf7 {[%clk 0:01:04.8]} 28. Nxf5 {[%clk
0:00:04.7]} 28... Bxf5 {[%clk 0:01:04.1]} 29. Ne4 {[%clk 0:00:02.1]} 29... Qd7
{[%clk 0:00:54.2]} 30. Ng5 {[%clk 0:00:02.5]} 30... Bxg5 {[%clk 0:00:53.1]} 31.
Rxg5 {[%clk 0:00:02.4]} 31... Bxc2 {[%clk 0:00:49.3]} 32. Rag1 {[%clk 0:00:03]}
32... Nb7 {[%clk 0:00:49.1]} 33. R5g4 {[%clk 0:00:01.8]} 33... Qf5 {[%clk
0:00:41.2]} 0-1

[Event "*** Titled Tuesday Blitz"]
[Site "Chess.com"]
[Date "2021.03.30"]
[Round "6"]
[White "esteban062000"]
[Black "Ladislav1969"]
[Result "0-1"]
[WhiteElo "2170"]
[BlackElo "2329"]
[TimeControl "180+1"]
[EndTime "11:05:53 PDT"]
[Termination "Ladislav1969 won by resignation"]

1. Nf3 {[%clk 0:03:00.9]} 1... c5 {[%clk 0:03:00]} 2. c4 {[%clk 0:03:00.5]} 2...
Nc6 {[%clk 0:02:59.7]} 3. g3 {[%clk 0:03:01.1]} 3... g6 {[%clk 0:03:00]} 4. Bg2
{[%clk 0:03:00.7]} 4... Bg7 {[%clk 0:03:00.6]} 5. O-O {[%clk 0:03:00.7]} 5... e5
{[%clk 0:03:00.2]} 6. d3 {[%clk 0:03:00.7]} 6... Nge7 {[%clk 0:02:59.9]} 7. Nc3
{[%clk 0:03:00.8]} 7... O-O {[%clk 0:02:59.7]} 8. b3 {[%clk 0:03:00.8]} 8... e4
{[%clk 0:02:55.9]} 9. Bb2 {[%clk 0:02:28.4]} 9... exf3 {[%clk 0:02:54.5]} 10.
Bxf3 {[%clk 0:02:29.3]} 10... d6 {[%clk 0:02:48.8]} 11. Rc1 {[%clk 0:02:27.9]}
11... Bh3 {[%clk 0:02:45.6]} 12. Re1 {[%clk 0:02:26.7]} 12... Re8 {[%clk
0:02:42.1]} 13. Qd2 {[%clk 0:02:20.2]} 13... Rb8 {[%clk 0:02:34.7]} 14. Ne4
{[%clk 0:02:14.2]} 14... Nd4 {[%clk 0:02:28]} 15. Bh1 {[%clk 0:02:08.8]} 15...
Nec6 {[%clk 0:02:23.9]} 16. e3 {[%clk 0:02:01.7]} 16... Nf5 {[%clk 0:02:00.2]}
17. Bxg7 {[%clk 0:01:36.1]} 17... Nxg7 {[%clk 0:01:49.3]} 18. Qc3 {[%clk
0:01:14.7]} 18... Nh5 {[%clk 0:01:41.6]} 19. Bf3 {[%clk 0:01:11.2]} 19... Bf5
{[%clk 0:01:41.7]} 20. Bxh5 {[%clk 0:00:40.5]} 20... Bxe4 {[%clk 0:01:41.1]} 21.
Bg4 {[%clk 0:00:39]} 21... Ne5 {[%clk 0:01:35.8]} 22. Be2 {[%clk 0:00:33.7]}
22... Nf3+ {[%clk 0:01:28.8]} 23. Bxf3 {[%clk 0:00:33.4]} 23... Bxf3 {[%clk
0:01:28.3]} 24. e4 {[%clk 0:00:33.4]} 24... Qd7 {[%clk 0:01:17.4]} 25. d4 {[%clk
0:00:33.2]} 25... Bxe4 {[%clk 0:01:17.6]} 26. dxc5 {[%clk 0:00:32.6]} 26... dxc5
{[%clk 0:01:14.2]} 27. Qf6 {[%clk 0:00:30.5]} 27... Qf5 {[%clk 0:01:06.8]} 28.
Qd6 {[%clk 0:00:27.9]} 28... Qf3 {[%clk 0:01:02.4]} 29. Rxe4 {[%clk 0:00:26.8]}
29... Qxe4 {[%clk 0:01:02.6]} 30. Rd1 {[%clk 0:00:27.1]} 30... Rbd8 {[%clk
0:00:57.1]} 31. Qxd8 {[%clk 0:00:25.9]} 31... Rxd8 {[%clk 0:00:57.4]} 32. Rxd8+
{[%clk 0:00:26.8]} 32... Kg7 {[%clk 0:00:58.1]} 33. Rd7 {[%clk 0:00:22.6]} 33...
a6 {[%clk 0:00:43.1]} 34. Rd5 {[%clk 0:00:21.5]} 34... Qb1+ {[%clk 0:00:41.7]}
35. Kg2 {[%clk 0:00:18.3]} 35... Qxa2 {[%clk 0:00:42.6]} 36. Rd3 {[%clk
0:00:17.8]} 36... Qc2 {[%clk 0:00:42.3]} 37. Rf3 {[%clk 0:00:17.8]} 37... Qe4
{[%clk 0:00:41.6]} 38. h3 {[%clk 0:00:16.4]} 38... h5 {[%clk 0:00:41.7]} 39. g4
{[%clk 0:00:12.4]} 39... h4 {[%clk 0:00:41.6]} 0-1

[Event "*** Titled Tuesday Blitz"]
[Site "Chess.com"]
[Date "2021.03.30"]
[Round "6"]
[White "Balla_Tamas"]
[Black "chessdjw"]
[Result "1-0"]
[WhiteElo "2544"]
[BlackElo "2770"]
[TimeControl "180+1"]
[EndTime "11:05:54 PDT"]
[Termination "Balla_Tamas won by resignation"]

1. e4 {[%clk 0:03:00.9]} 1... e5 {[%clk 0:02:59.9]} 2. Nf3 {[%clk 0:03:00.1]}
2... Nc6 {[%clk 0:03:00.5]} 3. d4 {[%clk 0:03:00]} 3... exd4 {[%clk 0:03:00.6]}
4. Nxd4 {[%clk 0:03:00.7]} 4... Nf6 {[%clk 0:03:01.2]} 5. Nxc6 {[%clk
0:02:48.1]} 5... bxc6 {[%clk 0:03:02.1]} 6. e5 {[%clk 0:02:48.5]} 6... Qe7
{[%clk 0:03:02]} 7. Qe2 {[%clk 0:02:48.3]} 7... Nd5 {[%clk 0:03:02.1]} 8. c4
{[%clk 0:02:48.6]} 8... Nb6 {[%clk 0:03:02.4]} 9. Nd2 {[%clk 0:02:46.5]} 9... g6
{[%clk 0:03:00]} 10. b3 {[%clk 0:02:45.7]} 10... Bg7 {[%clk 0:02:57.9]} 11. Bb2
{[%clk 0:02:45.6]} 11... O-O {[%clk 0:02:57.3]} 12. g3 {[%clk 0:02:41]} 12...
Re8 {[%clk 0:02:56.7]} 13. f4 {[%clk 0:02:39.7]} 13... d6 {[%clk 0:02:44]} 14.
Nf3 {[%clk 0:02:35.2]} 14... Nd7 {[%clk 0:02:07.1]} 15. Bg2 {[%clk 0:02:25]}
15... dxe5 {[%clk 0:02:06.9]} 16. fxe5 {[%clk 0:02:23.9]} 16... Nxe5 {[%clk
0:02:07.5]} 17. Nxe5 {[%clk 0:02:03.6]} 17... Bxe5 {[%clk 0:02:08.4]} 18. Bxe5
{[%clk 0:01:58.8]} 18... Qxe5 {[%clk 0:02:09.3]} 19. Qxe5 {[%clk 0:01:57.7]}
19... Rxe5+ {[%clk 0:02:09.5]} 20. Kd2 {[%clk 0:01:57.5]} 20... Bd7 {[%clk
0:01:57.8]} 21. Rhe1 {[%clk 0:01:54.1]} 21... Rae8 {[%clk 0:01:58]} 22. Rxe5
{[%clk 0:01:39]} 22... Rxe5 {[%clk 0:01:58.9]} 23. b4 {[%clk 0:01:25]} 23... c5
{[%clk 0:01:47.4]} 24. b5 {[%clk 0:01:24]} 24... Be6 {[%clk 0:01:46.3]} 25. Rc1
{[%clk 0:01:23.1]} 25... f5 {[%clk 0:01:41.1]} 26. Rc3 {[%clk 0:01:23]} 26... g5
{[%clk 0:01:39]} 27. Bf1 {[%clk 0:01:19.5]} 27... Re4 {[%clk 0:00:52.4]} 28. Ra3
{[%clk 0:01:01.3]} 28... Bxc4 {[%clk 0:00:52.8]} 29. Bxc4+ {[%clk 0:01:00.5]}
29... Rxc4 {[%clk 0:00:53.7]} 30. Rxa7 {[%clk 0:01:00.9]} 30... Rb4 {[%clk
0:00:54.2]} 31. a4 {[%clk 0:01:00.2]} 31... Rb3 {[%clk 0:00:54.6]} 32. Rxc7
{[%clk 0:00:56.6]} 32... Rb4 {[%clk 0:00:52.8]} 33. Rxc5 {[%clk 0:00:45.7]}
33... Rxa4 {[%clk 0:00:51.8]} 34. Rxf5 {[%clk 0:00:45.6]} 34... h6 {[%clk
0:00:49.9]} 35. Kc3 {[%clk 0:00:44.8]} 35... Kg7 {[%clk 0:00:46.5]} 36. b6
{[%clk 0:00:42.8]} 36... Ra8 {[%clk 0:00:44.5]} 37. Kb4 {[%clk 0:00:40.1]} 37...
Kg6 {[%clk 0:00:44.9]} 38. g4 {[%clk 0:00:38.2]} 38... h5 {[%clk 0:00:45.3]} 39.
h3 {[%clk 0:00:37.8]} 39... hxg4 {[%clk 0:00:45.4]} 40. hxg4 {[%clk 0:00:37.3]}
40... Ra1 {[%clk 0:00:46.1]} 41. Rb5 {[%clk 0:00:32.8]} 41... Ra8 {[%clk
0:00:44.8]} 42. b7 {[%clk 0:00:32.3]} 42... Rb8 {[%clk 0:00:44.6]} 43. Ka5
{[%clk 0:00:31.9]} 43... Kf6 {[%clk 0:00:45.2]} 44. Kb6 {[%clk 0:00:32]} 44...
Re8 {[%clk 0:00:41.8]} 45. Ka7 {[%clk 0:00:31.9]} 45... Re7 {[%clk 0:00:42.2]}
46. Ka8 {[%clk 0:00:31.5]} 46... Re1 {[%clk 0:00:42]} 47. b8=Q {[%clk
0:00:31.3]} 47... Ra1+ {[%clk 0:00:42.6]} 48. Kb7 {[%clk 0:00:31]} 1-0

[Event "*** Titled Tuesday Blitz"]
[Site "Chess.com"]
[Date "2021.03.30"]
[Round "6"]
[White "Jungle_Jaguar"]
[Black "Gnechko_Ruslan"]
[Result "1-0"]
[WhiteElo "2603"]
[BlackElo "2461"]
[TimeControl "180+1"]
[EndTime "11:05:55 PDT"]
[Termination "Jungle_Jaguar won by checkmate"]

1. b3 {[%clk 0:03:00.9]} 1... e5 {[%clk 0:02:57.9]} 2. Bb2 {[%clk 0:03:01.8]}
2... d6 {[%clk 0:02:57.4]} 3. e3 {[%clk 0:03:01]} 3... Nf6 {[%clk 0:02:57.2]} 4.
c4 {[%clk 0:02:57.9]} 4... g6 {[%clk 0:02:56.7]} 5. g3 {[%clk 0:02:56.6]} 5...
Bg7 {[%clk 0:02:57]} 6. Bg2 {[%clk 0:02:57.3]} 6... O-O {[%clk 0:02:57.6]} 7.
Nf3 {[%clk 0:02:57.9]} 7... Nc6 {[%clk 0:02:58.1]} 8. d3 {[%clk 0:02:58.2]} 8...
Bg4 {[%clk 0:02:52.2]} 9. Nbd2 {[%clk 0:02:57.8]} 9... Qd7 {[%clk 0:02:50.9]}
10. h3 {[%clk 0:02:53.5]} 10... Bf5 {[%clk 0:02:50.2]} 11. e4 {[%clk 0:02:49.8]}
11... Be6 {[%clk 0:02:50.2]} 12. Nf1 {[%clk 0:02:47.7]} 12... Ne8 {[%clk
0:02:45.1]} 13. Ng5 {[%clk 0:02:41.3]} 13... Nd4 {[%clk 0:02:37.8]} 14. Ne3
{[%clk 0:02:37.9]} 14... a5 {[%clk 0:02:24.4]} 15. Nd5 {[%clk 0:02:23.4]} 15...
Bxd5 {[%clk 0:02:19.5]} 16. cxd5 {[%clk 0:02:19.9]} 16... h6 {[%clk 0:02:19.8]}
17. Nf3 {[%clk 0:02:15.5]} 17... Nxf3+ {[%clk 0:02:18.8]} 18. Bxf3 {[%clk
0:02:16.4]} 18... f5 {[%clk 0:02:17.5]} 19. O-O {[%clk 0:02:16]} 19... Nf6
{[%clk 0:01:51]} 20. Kh2 {[%clk 0:02:10.1]} 20... a4 {[%clk 0:01:45.8]} 21. Rc1
{[%clk 0:02:04.5]} 21... axb3 {[%clk 0:01:45.5]} 22. Qxb3 {[%clk 0:02:05.4]}
22... fxe4 {[%clk 0:01:40.4]} 23. dxe4 {[%clk 0:02:04.3]} 23... c5 {[%clk
0:01:27.9]} 24. dxc6+ {[%clk 0:02:02.9]} 24... Qf7 {[%clk 0:01:27.7]} 25. cxb7
{[%clk 0:01:49.9]} 25... Rab8 {[%clk 0:01:23.1]} 26. Rc7 {[%clk 0:01:46.6]}
26... Qxb3 {[%clk 0:01:17.2]} 27. axb3 {[%clk 0:01:47.5]} 27... Rf7 {[%clk
0:01:16.1]} 28. Rc8+ {[%clk 0:01:46.7]} 28... Rf8 {[%clk 0:01:16.3]} 29. Ba3
{[%clk 0:01:36.3]} 29... Rxb7 {[%clk 0:01:10.4]} 30. Rc3 {[%clk 0:01:36.3]}
30... Rb6 {[%clk 0:01:01.4]} 31. Rd1 {[%clk 0:01:34.9]} 31... Rfb8 {[%clk
0:00:43.5]} 32. Rdd3 {[%clk 0:01:27.4]} 32... Bf8 {[%clk 0:00:40.3]} 33. Kg2
{[%clk 0:01:27]} 33... Kf7 {[%clk 0:00:37]} 34. Bc1 {[%clk 0:01:20.5]} 34... Ke6
{[%clk 0:00:31.6]} 35. Be3 {[%clk 0:01:17.5]} 35... Rb4 {[%clk 0:00:32]} 36. Bd2
{[%clk 0:00:55.1]} 36... Nxe4 {[%clk 0:00:24.9]} 37. Bg4+ {[%clk 0:00:55.1]}
37... Kf6 {[%clk 0:00:22.4]} 38. Rf3+ {[%clk 0:00:54.8]} 38... Kg7 {[%clk
0:00:14.4]} 39. Rc7+ {[%clk 0:00:55.7]} 39... Kg8 {[%clk 0:00:14.4]} 40. Bxb4
{[%clk 0:00:53]} 40... Rxb4 {[%clk 0:00:11.2]} 41. Be6+ {[%clk 0:00:53.5]} 41...
Kh8 {[%clk 0:00:11.5]} 42. Rxf8# {[%clk 0:00:54.1]} 1-0

[Event "*** Titled Tuesday Blitz"]
[Site "Chess.com"]
[Date "2021.03.30"]
[Round "6"]
[White "Chopper1905"]
[Black "aunqa"]
[Result "1-0"]
[WhiteElo "2914"]
[BlackElo "2250"]
[TimeControl "180+1"]
[EndTime "11:05:56 PDT"]
[Termination "Chopper1905 won by resignation"]

1. d4 {[%clk 0:03:00.9]} 1... f5 {[%clk 0:02:54.9]} 2. Nc3 {[%clk 0:02:56.1]}
2... Nf6 {[%clk 0:02:54.2]} 3. Bg5 {[%clk 0:02:52.3]} 3... e6 {[%clk 0:02:47.7]}
4. e4 {[%clk 0:02:50.2]} 4... fxe4 {[%clk 0:02:47.4]} 5. Nxe4 {[%clk 0:02:49.4]}
5... Be7 {[%clk 0:02:48.3]} 6. Bxf6 {[%clk 0:02:46]} 6... Bxf6 {[%clk 0:02:47]}
7. Nf3 {[%clk 0:02:46]} 7... O-O {[%clk 0:02:46.5]} 8. Bd3 {[%clk 0:02:38.3]}
8... b6 {[%clk 0:02:43.4]} 9. h4 {[%clk 0:02:19.5]} 9... Bb7 {[%clk 0:02:35.9]}
10. Nfg5 {[%clk 0:02:01.7]} 10... h6 {[%clk 0:02:29.6]} 11. Nh7 {[%clk
0:01:59.1]} 11... Kxh7 {[%clk 0:02:21.6]} 12. Nxf6+ {[%clk 0:01:53.2]} 12... Kh8
{[%clk 0:02:20.1]} 13. Ne4 {[%clk 0:01:48.4]} 13... Nc6 {[%clk 0:02:18.3]} 14.
c3 {[%clk 0:01:44.9]} 14... Ne7 {[%clk 0:02:16.3]} 15. Qe2 {[%clk 0:01:39.2]}
15... Qe8 {[%clk 0:02:14.6]} 16. O-O-O {[%clk 0:01:37.9]} 16... Nd5 {[%clk
0:02:11.1]} 17. g3 {[%clk 0:01:36.6]} 17... Qf7 {[%clk 0:02:06.3]} 18. f4 {[%clk
0:01:35.7]} 18... a5 {[%clk 0:01:57.4]} 19. Kb1 {[%clk 0:01:29.3]} 19... a4
{[%clk 0:01:44.8]} 20. a3 {[%clk 0:01:21.5]} 20... Ra5 {[%clk 0:01:36.4]} 21.
Ka1 {[%clk 0:01:18.6]} 21... Qe7 {[%clk 0:01:33.6]} 22. Rh2 {[%clk 0:01:09.4]}
22... Nf6 {[%clk 0:00:49.8]} 23. Ng5 {[%clk 0:01:07.1]} 23... c5 {[%clk
0:00:45.1]} 24. Bb1 {[%clk 0:00:45.5]} 24... cxd4 {[%clk 0:00:41.6]} 25. Rxd4
{[%clk 0:00:46.4]} 25... Bd5 {[%clk 0:00:36.1]} 26. Qd3 {[%clk 0:00:44]} 26...
Rc8 {[%clk 0:00:25.3]} 27. Nh7 {[%clk 0:00:35.7]} 27... Ng4 {[%clk 0:00:23.9]}
28. Re2 {[%clk 0:00:27.4]} 28... Qc5 {[%clk 0:00:17]} 29. Nf8 {[%clk 0:00:22.6]}
29... Nf6 {[%clk 0:00:15.2]} 30. Nxd7 {[%clk 0:00:22.1]} 30... Qe7 {[%clk
0:00:14.8]} 31. Nxf6 {[%clk 0:00:21.1]} 31... gxf6 {[%clk 0:00:14.9]} 32. Rxd5
{[%clk 0:00:20.6]} 1-0

[Event "*** Titled Tuesday Blitz"]
[Site "Chess.com"]
[Date "2021.03.30"]
[Round "6"]
[White "2nd_life"]
[Black "Zq1"]
[Result "1-0"]
[WhiteElo "2410"]
[BlackElo "2529"]
[TimeControl "180+1"]
[EndTime "11:05:59 PDT"]
[Termination "2nd_life won by resignation"]

1. e4 {[%clk 0:03:00.9]} 1... c5 {[%clk 0:02:59.3]} 2. Nf3 {[%clk 0:03:00.1]}
2... d6 {[%clk 0:02:59.5]} 3. Bb5+ {[%clk 0:02:58.8]} 3... Bd7 {[%clk
0:02:58.7]} 4. c4 {[%clk 0:02:58.9]} 4... Nc6 {[%clk 0:02:58.2]} 5. Nc3 {[%clk
0:02:56.9]} 5... Nf6 {[%clk 0:02:58]} 6. O-O {[%clk 0:02:54.2]} 6... g6 {[%clk
0:02:57.6]} 7. Bxc6 {[%clk 0:02:35.4]} 7... Bxc6 {[%clk 0:02:51.4]} 8. d4 {[%clk
0:02:33]} 8... cxd4 {[%clk 0:02:42.7]} 9. Nxd4 {[%clk 0:02:32.5]} 9... Bg7
{[%clk 0:02:42.7]} 10. f3 {[%clk 0:02:09.2]} 10... O-O {[%clk 0:02:40.1]} 11.
Be3 {[%clk 0:02:07.1]} 11... Rc8 {[%clk 0:02:37.7]} 12. Qd2 {[%clk 0:02:06]}
12... b6 {[%clk 0:02:37.6]} 13. Bh6 {[%clk 0:02:01]} 13... Bxh6 {[%clk
0:02:16.6]} 14. Qxh6 {[%clk 0:02:00.2]} 14... Bb7 {[%clk 0:02:16.3]} 15. b3
{[%clk 0:01:55.8]} 15... a6 {[%clk 0:02:15.9]} 16. a4 {[%clk 0:01:45.8]} 16...
Qc7 {[%clk 0:02:15]} 17. Qe3 {[%clk 0:01:38]} 17... e6 {[%clk 0:02:09.6]} 18.
Rac1 {[%clk 0:01:36.6]} 18... Rfe8 {[%clk 0:02:08.4]} 19. Rfd1 {[%clk
0:01:28.3]} 19... Qc5 {[%clk 0:02:04]} 20. Nc2 {[%clk 0:01:18.3]} 20... d5
{[%clk 0:01:59.8]} 21. e5 {[%clk 0:00:54.7]} 21... Nd7 {[%clk 0:01:52.2]} 22. f4
{[%clk 0:00:48.7]} 22... Qxe3+ {[%clk 0:01:32]} 23. Nxe3 {[%clk 0:00:48.2]}
23... Nc5 {[%clk 0:01:32.2]} 24. cxd5 {[%clk 0:00:28.5]} 24... Nxb3 {[%clk
0:01:31.2]} 25. d6 {[%clk 0:00:28.7]} 25... Red8 {[%clk 0:00:55.1]} 26. Rc2
{[%clk 0:00:24.9]} 26... Nc5 {[%clk 0:00:55.1]} 27. Rb1 {[%clk 0:00:19.7]} 27...
Ne4 {[%clk 0:00:40.5]} 28. Nxe4 {[%clk 0:00:17.4]} 28... Bxe4 {[%clk 0:00:35.3]}
29. Rxc8 {[%clk 0:00:17]} 29... Rxc8 {[%clk 0:00:35]} 30. Rxb6 {[%clk
0:00:17.2]} 30... h5 {[%clk 0:00:29.3]} 31. Kf2 {[%clk 0:00:15.6]} 31... Rc3
{[%clk 0:00:18.7]} 32. d7 {[%clk 0:00:14.4]} 1-0

[Event "*** Titled Tuesday Blitz"]
[Site "Chess.com"]
[Date "2021.03.30"]
[Round "6"]
[White "Arvids_Andrejevs"]
[Black "Cocaino74"]
[Result "1-0"]
[WhiteElo "2443"]
[BlackElo "2276"]
[TimeControl "180+1"]
[EndTime "11:05:59 PDT"]
[Termination "Arvids_Andrejevs won by resignation"]

1. e4 {[%clk 0:02:56.6]} 1... c5 {[%clk 0:02:58.2]} 2. c3 {[%clk 0:02:56.4]}
2... g6 {[%clk 0:02:56.8]} 3. d4 {[%clk 0:02:56.6]} 3... cxd4 {[%clk 0:02:57.3]}
4. cxd4 {[%clk 0:02:57.5]} 4... d5 {[%clk 0:02:58.1]} 5. exd5 {[%clk 0:02:57.2]}
5... Nf6 {[%clk 0:02:58]} 6. Nc3 {[%clk 0:02:55.7]} 6... Bg7 {[%clk 0:02:54]} 7.
g3 {[%clk 0:02:56]} 7... Nxd5 {[%clk 0:02:53.7]} 8. Bg2 {[%clk 0:02:55.1]} 8...
Nb6 {[%clk 0:02:51.7]} 9. Nge2 {[%clk 0:02:51.6]} 9... Nc6 {[%clk 0:02:49.2]}
10. Be3 {[%clk 0:02:41.9]} 10... Bg4 {[%clk 0:02:44.6]} 11. h3 {[%clk
0:02:40.5]} 11... Bxe2 {[%clk 0:02:44.4]} 12. Nxe2 {[%clk 0:02:40.7]} 12... O-O
{[%clk 0:02:41.2]} 13. O-O {[%clk 0:02:40.5]} 13... Nc4 {[%clk 0:02:39.4]} 14.
Qb3 {[%clk 0:02:39.8]} 14... Nxe3 {[%clk 0:02:29]} 15. fxe3 {[%clk 0:02:40.7]}
15... Qb6 {[%clk 0:02:28.1]} 16. Qxb6 {[%clk 0:02:37.7]} 16... axb6 {[%clk
0:02:29]} 17. Nc3 {[%clk 0:02:37.8]} 17... Rfd8 {[%clk 0:02:11.1]} 18. a3 {[%clk
0:02:37.1]} 18... e6 {[%clk 0:02:00.6]} 19. Rac1 {[%clk 0:02:33.4]} 19... Na5
{[%clk 0:01:56.9]} 20. Nb5 {[%clk 0:02:32]} 20... Rac8 {[%clk 0:01:53.6]} 21. b4
{[%clk 0:02:07.3]} 21... Nb3 {[%clk 0:01:51.6]} 22. Rxc8 {[%clk 0:02:04.3]}
22... Rxc8 {[%clk 0:01:52]} 23. Bxb7 {[%clk 0:02:01.9]} 23... Rc2 {[%clk
0:01:49]} 24. Nd6 {[%clk 0:01:54.5]} 24... Bh6 {[%clk 0:00:44.3]} 25. Nxf7
{[%clk 0:01:48]} 25... Bxe3+ {[%clk 0:00:42]} 26. Kh1 {[%clk 0:01:48.6]} 26...
Nxd4 {[%clk 0:00:33.3]} 27. Ne5 {[%clk 0:01:37.3]} 27... Nf5 {[%clk 0:00:25.2]}
28. Rf3 {[%clk 0:01:16.8]} 28... Nxg3+ {[%clk 0:00:16.8]} 29. Rxg3 {[%clk
0:01:14]} 29... Bf4 {[%clk 0:00:17.4]} 30. Rd3 {[%clk 0:00:57]} 30... Bxe5
{[%clk 0:00:15.7]} 31. Re3 {[%clk 0:00:57.3]} 31... Rc1+ {[%clk 0:00:11.5]} 32.
Kg2 {[%clk 0:00:56.7]} 32... Bd4 {[%clk 0:00:07]} 33. Rxe6 {[%clk 0:00:55.3]}
33... Rc3 {[%clk 0:00:07]} 34. a4 {[%clk 0:00:51.3]} 34... Ra3 {[%clk
0:00:07.1]} 35. Bc6 {[%clk 0:00:44.9]} 35... Bc3 {[%clk 0:00:05]} 36. Re4 {[%clk
0:00:43]} 36... Rb3 {[%clk 0:00:04.1]} 37. Bd5+ {[%clk 0:00:40.8]} 37... Kg7
{[%clk 0:00:04.6]} 38. Bxb3 {[%clk 0:00:41.7]} 1-0